[Event "Live Chess"]
[Site "Chess.com"]
[Date "2024.06.02"]
[Round "-"]
[White "vincents82"]
[Black "ACM42"]
[Result "1/2-1/2"]
[WhiteElo "2012"]
[BlackElo "2169"]
[TimeControl "300"]
[EndTime "3:48:18 PDT"]
[Termination "Game drawn by repetition"]

1. e4 {[%clk 0:04:57.8]} 1... e6 {[%clk 0:04:58.8]} 2. d4 {[%clk 0:04:56.7]}
2... d5 {[%clk 0:04:58.2]} 3. Nd2 {[%clk 0:04:56.2]} 3... Nf6 {[%clk 0:04:57.1]}
4. e5 {[%clk 0:04:55.7]} 4... Nfd7 {[%clk 0:04:57]} 5. Bd3 {[%clk 0:04:55]} 5...
c5 {[%clk 0:04:56.7]} 6. c3 {[%clk 0:04:54.6]} 6... Nc6 {[%clk 0:04:56.6]} 7.
Ne2 {[%clk 0:04:53.6]} 7... f6 {[%clk 0:04:55.9]} 8. exf6 {[%clk 0:04:52.5]}
8... Nxf6 {[%clk 0:04:55.8]} 9. Nf3 {[%clk 0:04:52]} 9... Bd6 {[%clk 0:04:55.1]}
10. O-O {[%clk 0:04:51.2]} 10... O-O {[%clk 0:04:54.5]} 11. Bf4 {[%clk
0:04:50.5]} 11... Bxf4 {[%clk 0:04:49.1]} 12. Nxf4 {[%clk 0:04:49.6]} 12... Qc7
{[%clk 0:04:48.2]} 13. g3 {[%clk 0:04:46.9]} 13... e5 {[%clk 0:04:46.7]} 14.
dxe5 {[%clk 0:04:36.4]} 14... Nxe5 {[%clk 0:04:45.3]} 15. Nxe5 {[%clk
0:04:33.5]} 15... Qxe5 {[%clk 0:04:44]} 16. Be2 {[%clk 0:04:28.6]} 16... Qd6
{[%clk 0:04:36.6]} 17. Bc4 {[%clk 0:04:11.4]} 17... Rd8 {[%clk 0:04:29.6]} 18.
Be2 {[%clk 0:03:55.7]} 18... Bf5 {[%clk 0:04:25.1]} 19. Bf3 {[%clk 0:03:54.4]}
19... Rd7 {[%clk 0:04:18.4]} 20. Qb3 {[%clk 0:03:48.5]} 20... g5 {[%clk
0:03:57.4]} 21. Nxd5 {[%clk 0:03:19.4]} 21... Nxd5 {[%clk 0:03:55.1]} 22. Rad1
{[%clk 0:03:17]} 22... c4 {[%clk 0:03:41.8]} 23. Bxd5+ {[%clk 0:02:46.6]} 23...
Qxd5 {[%clk 0:03:36.7]} 24. Rxd5 {[%clk 0:02:43.7]} 24... cxb3 {[%clk
0:03:36.1]} 25. Rxf5 {[%clk 0:02:37.8]} 25... h6 {[%clk 0:03:28.2]} 26. axb3
{[%clk 0:02:33.8]} 26... Rd2 {[%clk 0:03:27.4]} 27. Re1 {[%clk 0:02:29.8]} 27...
Rf8 {[%clk 0:03:17.5]} 28. Rxf8+ {[%clk 0:02:14.1]} 28... Kxf8 {[%clk
0:03:17.4]} 29. Ra1 {[%clk 0:02:06.8]} 29... a6 {[%clk 0:03:14.3]} 30. Ra2
{[%clk 0:02:04.8]} 30... g4 {[%clk 0:03:10.5]} 31. Kg2 {[%clk 0:02:03.3]} 31...
Kf7 {[%clk 0:03:06.9]} 32. b4 {[%clk 0:02:02.6]} 32... Kf6 {[%clk 0:02:58.8]}
33. h3 {[%clk 0:02:00.1]} 33... gxh3+ {[%clk 0:02:55.2]} 34. Kxh3 {[%clk
0:01:59.1]} 34... Rxf2 {[%clk 0:02:54.7]} 35. Kg4 {[%clk 0:01:57.6]} 35... Kg6
{[%clk 0:02:47]} 36. b5 {[%clk 0:01:51.8]} 36... axb5 {[%clk 0:02:43.7]} 37. Ra7
{[%clk 0:01:48.7]} 37... Rxb2 {[%clk 0:02:40.1]} 38. Rxb7 {[%clk 0:01:47.8]}
38... Rc2 {[%clk 0:02:28.2]} 39. Rb6+ {[%clk 0:01:44.6]} 39... Kg7 {[%clk
0:02:26.5]} 40. Rxb5 {[%clk 0:01:43.6]} 40... Rxc3 {[%clk 0:02:25.7]} 41. Rb7+
{[%clk 0:01:40.1]} 41... Kg6 {[%clk 0:02:24.5]} 42. Rb6+ {[%clk 0:01:39.4]}
42... Kg7 {[%clk 0:02:22.7]} 43. Rb7+ {[%clk 0:01:38.7]} 43... Kg6 {[%clk
0:02:22.2]} 44. Rb6+ {[%clk 0:01:38.1]} 44... Kg7 {[%clk 0:02:21.7]} 45. Rb7+
{[%clk 0:01:37.6]} 1/2-1/2

[Event "Live Chess"]
[Site "Chess.com"]
[Date "2024.06.02"]
[Round "-"]
[White "asingardenof"]
[Black "r0ad_t0-gm"]
[Result "0-1"]
[WhiteElo "621"]
[BlackElo "2271"]
[TimeControl "300"]
[EndTime "3:48:50 PDT"]
[Termination "r0ad_t0-gm won by checkmate"]

1. d4 {[%clk 0:04:54.7]} 1... Nf6 {[%clk 0:04:59.9]} 2. c4 {[%clk 0:04:53.7]}
2... g6 {[%clk 0:04:59.4]} 3. Nc3 {[%clk 0:04:50.5]} 3... Bg7 {[%clk 0:04:58.7]}
4. Nf3 {[%clk 0:04:49.2]} 4... d6 {[%clk 0:04:58.3]} 5. e3 {[%clk 0:04:49.1]}
5... O-O {[%clk 0:04:57.9]} 6. Bd3 {[%clk 0:04:48.2]} 6... Nbd7 {[%clk
0:04:57.1]} 7. O-O {[%clk 0:04:48.1]} 7... e5 {[%clk 0:04:56.1]} 8. d5 {[%clk
0:04:46.6]} 8... Re8 {[%clk 0:04:53.7]} 9. e4 {[%clk 0:04:44.5]} 9... Nc5 {[%clk
0:04:52.8]} 10. Bg5 {[%clk 0:04:39]} 10... a5 {[%clk 0:04:50.6]} 11. Nb5 {[%clk
0:04:35.2]} 11... h6 {[%clk 0:04:48.9]} 12. Bh4 {[%clk 0:04:33.8]} 12... g5
{[%clk 0:04:47.6]} 13. Bg3 {[%clk 0:04:32.6]} 13... Nh5 {[%clk 0:04:45.7]} 14.
b3 {[%clk 0:04:04.2]} 14... Nf4 {[%clk 0:04:42.8]} 15. Bxf4 {[%clk 0:04:01.4]}
15... exf4 {[%clk 0:04:42.7]} 16. Nd2 {[%clk 0:03:56.1]} 16... Bxa1 {[%clk
0:04:40.5]} 17. Qxa1 {[%clk 0:03:54.4]} 17... Nxd3 {[%clk 0:04:40]} 18. Nd4
{[%clk 0:03:49.3]} 18... Ne5 {[%clk 0:04:38.8]} 19. N2f3 {[%clk 0:03:44.2]}
19... Nxf3+ {[%clk 0:04:34.7]} 20. Nxf3 {[%clk 0:03:44.1]} 20... f5 {[%clk
0:04:32.9]} 21. Re1 {[%clk 0:03:38.2]} 21... fxe4 {[%clk 0:04:31.2]} 22. Nd2
{[%clk 0:03:35.4]} 22... Bf5 {[%clk 0:04:30]} 23. f3 {[%clk 0:03:32.4]} 23... e3
{[%clk 0:04:28.8]} 24. Nb1 {[%clk 0:03:25.2]} 24... Qe7 {[%clk 0:04:26.6]} 25.
g4 {[%clk 0:03:19]} 25... Bg6 {[%clk 0:04:21.1]} 26. Nc3 {[%clk 0:03:15.2]}
26... Qe5 {[%clk 0:04:19.8]} 27. Qc1 {[%clk 0:03:05]} 27... Kh7 {[%clk
0:04:18.7]} 28. Nb5 {[%clk 0:02:53.4]} 28... c6 {[%clk 0:04:17.4]} 29. Nc7
{[%clk 0:02:51]} 29... cxd5 {[%clk 0:04:16.8]} 30. Nxe8 {[%clk 0:02:48.2]} 30...
Rxe8 {[%clk 0:04:16]} 31. Rd1 {[%clk 0:02:46.3]} 31... d4 {[%clk 0:04:13.9]} 32.
c5 {[%clk 0:02:44.4]} 32... dxc5 {[%clk 0:04:12.9]} 33. Qc4 {[%clk 0:02:41.1]}
33... b6 {[%clk 0:04:12]} 34. Qb5 {[%clk 0:02:39.2]} 34... Re7 {[%clk
0:04:11.2]} 35. Qxb6 {[%clk 0:02:32.6]} 35... e2 {[%clk 0:04:10.7]} 36. Re1
{[%clk 0:02:31.2]} 36... d3 {[%clk 0:04:10.2]} 37. Qd8 {[%clk 0:02:26.4]} 37...
Qe3+ {[%clk 0:04:06]} 38. Kg2 {[%clk 0:02:22.6]} 38... d2 {[%clk 0:04:05.4]} 39.
Kh3 {[%clk 0:02:17.5]} 39... dxe1=Q {[%clk 0:04:03.1]} 40. Qxe7+ {[%clk
0:02:01.4]} 40... Qxe7 {[%clk 0:04:03]} 41. b4 {[%clk 0:01:58.5]} 41... Qh4+
{[%clk 0:03:58.1]} 42. Kg2 {[%clk 0:01:56.1]} 42... e1=N+ {[%clk 0:03:58]} 43.
Kf1 {[%clk 0:01:54.8]} 43... Nd3 {[%clk 0:03:55.5]} 44. b5 {[%clk 0:01:50.2]}
44... Qf2# {[%clk 0:03:55.4]} 0-1

[Event "Live Chess"]
[Site "Chess.com"]
[Date "2024.06.02"]
[Round "-"]
[White "Bradfield133"]
[Black "NeilDruggan73"]
[Result "1-0"]
[WhiteElo "1860"]
[BlackElo "1692"]
[TimeControl "300"]
[EndTime "3:48:57 PDT"]
[Termination "Bradfield133 won by resignation"]

1. c4 {[%clk 0:04:58.6]} 1... Nf6 {[%clk 0:04:56.4]} 2. g3 {[%clk 0:04:57.5]}
2... g6 {[%clk 0:04:55.7]} 3. Bg2 {[%clk 0:04:56.3]} 3... Bg7 {[%clk 0:04:55.2]}
4. Nc3 {[%clk 0:04:54.6]} 4... O-O {[%clk 0:04:54.7]} 5. e4 {[%clk 0:04:53]}
5... d6 {[%clk 0:04:49.9]} 6. Nge2 {[%clk 0:04:52.9]} 6... e5 {[%clk 0:04:48]}
7. O-O {[%clk 0:04:51.6]} 7... Nh5 {[%clk 0:04:45.8]} 8. h3 {[%clk 0:04:43.7]}
8... Nc6 {[%clk 0:04:35.5]} 9. f4 {[%clk 0:04:40.7]} 9... exf4 {[%clk
0:04:32.2]} 10. Nxf4 {[%clk 0:04:37.5]} 10... Nxg3 {[%clk 0:04:30.3]} 11. Rf3
{[%clk 0:04:30.8]} 11... Bd4+ {[%clk 0:04:04]} 12. Kh2 {[%clk 0:04:27.5]} 12...
Be5 {[%clk 0:03:48]} 13. d3 {[%clk 0:04:12.5]} 13... Qh4 {[%clk 0:03:44.7]} 14.
Rxg3 {[%clk 0:04:03.8]} 14... Bxf4 {[%clk 0:03:42.2]} 15. Bxf4 {[%clk
0:04:01.6]} 15... Qxf4 {[%clk 0:03:41.8]} 16. Nd5 {[%clk 0:04:00]} 16... Qe5
{[%clk 0:03:31.1]} 17. Qd2 {[%clk 0:03:29.3]} 17... Be6 {[%clk 0:03:07.9]} 18.
Nxc7 {[%clk 0:03:26.3]} 18... Rac8 {[%clk 0:03:07.5]} 19. Nd5 {[%clk 0:03:15.1]}
19... Bxd5 {[%clk 0:03:06]} 20. exd5 {[%clk 0:03:10.8]} 20... Ne7 {[%clk
0:03:03.7]} 21. Re1 {[%clk 0:03:06.4]} 21... Qf5 {[%clk 0:02:37.9]} 22. Rxe7
{[%clk 0:03:01.5]} 1-0

[Event "Live Chess"]
[Site "Chess.com"]
[Date "2024.06.02"]
[Round "-"]
[White "stevochess11"]
[Black "Isambard_Thomas"]
[Result "0-1"]
[WhiteElo "1713"]
[BlackElo "2181"]
[TimeControl "300"]
[EndTime "3:49:08 PDT"]
[Termination "Isambard_Thomas won by checkmate"]

1. d4 {[%clk 0:04:55.9]} 1... Nf6 {[%clk 0:04:58.9]} 2. Nf3 {[%clk 0:04:55]}
2... d5 {[%clk 0:04:57.7]} 3. e3 {[%clk 0:04:53.9]} 3... c6 {[%clk 0:04:57.2]}
4. c4 {[%clk 0:04:52.3]} 4... Bg4 {[%clk 0:04:54.9]} 5. cxd5 {[%clk 0:04:51]}
5... Nxd5 {[%clk 0:04:52.2]} 6. Nc3 {[%clk 0:04:49.5]} 6... e6 {[%clk
0:04:50.7]} 7. Qb3 {[%clk 0:04:45.9]} 7... Nb6 {[%clk 0:04:48.2]} 8. Ne5 {[%clk
0:04:43.1]} 8... Bh5 {[%clk 0:04:43.9]} 9. g4 {[%clk 0:04:37.8]} 9... Bg6 {[%clk
0:04:42.6]} 10. Nxg6 {[%clk 0:04:34.9]} 10... hxg6 {[%clk 0:04:41.5]} 11. Bd3
{[%clk 0:04:32.3]} 11... Bd6 {[%clk 0:04:36]} 12. Ne4 {[%clk 0:04:17.1]} 12...
Be7 {[%clk 0:04:12.2]} 13. Bd2 {[%clk 0:04:07.5]} 13... N8d7 {[%clk 0:04:10.2]}
14. Bb4 {[%clk 0:03:53.6]} 14... Nf6 {[%clk 0:03:07.5]} 15. Bxe7 {[%clk
0:03:39.8]} 15... Qxe7 {[%clk 0:03:05.3]} 16. Nxf6+ {[%clk 0:03:24.2]} 16...
Qxf6 {[%clk 0:03:04.3]} 17. O-O-O {[%clk 0:03:19.3]} 17... Qf3 {[%clk 0:02:46]}
18. Bxg6 {[%clk 0:02:40.9]} 18... fxg6 {[%clk 0:02:32.2]} 19. Qxe6+ {[%clk
0:02:38.6]} 19... Kf8 {[%clk 0:02:31.5]} 20. Qd6+ {[%clk 0:02:34.3]} 20... Kg8
{[%clk 0:02:25.6]} 21. Qe6+ {[%clk 0:02:32.8]} 21... Kh7 {[%clk 0:02:17.1]} 22.
h4 {[%clk 0:02:29.6]} 22... Rhe8 {[%clk 0:02:12]} 23. Qb3 {[%clk 0:02:22.7]}
23... Qxf2 {[%clk 0:02:05.8]} 24. Rde1 {[%clk 0:02:10.7]} 24... Nd5 {[%clk
0:02:00.3]} 25. h5 {[%clk 0:02:09.1]} 25... Rxe3 {[%clk 0:01:47.9]} 26. hxg6+
{[%clk 0:02:05.4]} 26... Kxg6 {[%clk 0:01:41.1]} 27. Qxb7 {[%clk 0:01:53.9]}
27... Rxe1+ {[%clk 0:01:39.1]} 28. Rxe1 {[%clk 0:01:48.3]} 28... Qxe1+ {[%clk
0:01:38.3]} 29. Kc2 {[%clk 0:01:47.6]} 29... Qe2+ {[%clk 0:01:10.5]} 30. Kc1
{[%clk 0:01:43.2]} 30... Qc4+ {[%clk 0:01:08]} 31. Kd2 {[%clk 0:01:41.2]} 31...
Re8 {[%clk 0:01:04.6]} 32. Qd7 {[%clk 0:01:23.6]} 32... Re2+ {[%clk 0:01:03.1]}
33. Kd1 {[%clk 0:01:21.9]} 33... Qc2# {[%clk 0:01:02.7]} 0-1

[Event "Live Chess"]
[Site "Chess.com"]
[Date "2024.06.02"]
[Round "-"]
[White "yarek"]
[Black "halfberg"]
[Result "0-1"]
[WhiteElo "1754"]
[BlackElo "1907"]
[TimeControl "300"]
[EndTime "3:49:22 PDT"]
[Termination "halfberg won by resignation"]

1. e4 {[%clk 0:04:55.1]} 1... c5 {[%clk 0:04:57.7]} 2. d4 {[%clk 0:04:53.9]}
2... cxd4 {[%clk 0:04:56.2]} 3. c3 {[%clk 0:04:53.5]} 3... Nf6 {[%clk
0:04:54.5]} 4. e5 {[%clk 0:04:51]} 4... Nd5 {[%clk 0:04:53.5]} 5. cxd4 {[%clk
0:04:50.3]} 5... Nc6 {[%clk 0:04:50]} 6. Nc3 {[%clk 0:04:48.6]} 6... e6 {[%clk
0:04:44.9]} 7. Nxd5 {[%clk 0:04:39.5]} 7... exd5 {[%clk 0:04:43.4]} 8. Nf3
{[%clk 0:04:35.7]} 8... d6 {[%clk 0:04:41.6]} 9. Bf4 {[%clk 0:04:20.7]} 9...
dxe5 {[%clk 0:04:38.4]} 10. Nxe5 {[%clk 0:04:13.6]} 10... Bb4+ {[%clk
0:04:33.1]} 11. Bd2 {[%clk 0:04:06.6]} 11... O-O {[%clk 0:04:27.6]} 12. Bxb4
{[%clk 0:03:46.2]} 12... Nxb4 {[%clk 0:04:21.9]} 13. Be2 {[%clk 0:03:41.6]}
13... Bf5 {[%clk 0:03:45.9]} 14. O-O {[%clk 0:03:28.7]} 14... Rc8 {[%clk
0:03:38.9]} 15. a3 {[%clk 0:03:07.9]} 15... Nc6 {[%clk 0:03:35.5]} 16. f4 {[%clk
0:02:52.3]} 16... Qb6 {[%clk 0:03:18.8]} 17. Nxc6 {[%clk 0:02:39.2]} 17... Rxc6
{[%clk 0:03:10]} 18. b4 {[%clk 0:02:33.1]} 18... Rfc8 {[%clk 0:03:05.7]} 19. Rf2
{[%clk 0:01:56.7]} 19... Be4 {[%clk 0:03:00]} 20. f5 {[%clk 0:01:51.1]} 20...
Qd8 {[%clk 0:02:43.7]} 21. Bd3 {[%clk 0:01:42.2]} 21... Qe7 {[%clk 0:02:34.7]}
22. Re2 {[%clk 0:01:27.5]} 22... Rc3 {[%clk 0:02:18.4]} 23. Bxe4 {[%clk
0:01:23.7]} 23... dxe4 {[%clk 0:02:17.4]} 24. Qe1 {[%clk 0:01:19.7]} 24... e3
{[%clk 0:02:13.8]} 25. d5 {[%clk 0:01:09.3]} 25... Qe5 {[%clk 0:02:06.5]} 26.
Rd1 {[%clk 0:01:04.1]} 26... Rd8 {[%clk 0:01:42.4]} 27. d6 {[%clk 0:01:02.2]}
27... Rxa3 {[%clk 0:01:34.6]} 28. d7 {[%clk 0:00:57.4]} 28... f6 {[%clk
0:01:18.2]} 29. Red2 {[%clk 0:00:52]} 29... Kf7 {[%clk 0:01:02.6]} 30. Rc2
{[%clk 0:00:51.9]} 30... Ke7 {[%clk 0:00:53.1]} 31. Rc8 {[%clk 0:00:51.8]} 31...
Rxd7 {[%clk 0:00:49.8]} 32. Rxd7+ {[%clk 0:00:47.7]} 32... Kxd7 {[%clk
0:00:49.1]} 33. Qc1 {[%clk 0:00:43.1]} 33... e2 {[%clk 0:00:44.4]} 0-1

[Event "Live Chess"]
[Site "Chess.com"]
[Date "2024.06.02"]
[Round "-"]
[White "missedJariChance"]
[Black "ZatixMajor"]
[Result "0-1"]
[WhiteElo "1353"]
[BlackElo "2032"]
[TimeControl "300"]
[EndTime "3:49:40 PDT"]
[Termination "ZatixMajor won by resignation"]

1. b3 {[%clk 0:04:58.1]} 1... c5 {[%clk 0:04:59.2]} 2. Bb2 {[%clk 0:04:56.9]}
2... Nc6 {[%clk 0:04:59.1]} 3. Nf3 {[%clk 0:04:55.3]} 3... Nf6 {[%clk
0:04:58.6]} 4. e3 {[%clk 0:04:51.2]} 4... g6 {[%clk 0:04:56.9]} 5. Be2 {[%clk
0:04:42.9]} 5... Bg7 {[%clk 0:04:56.1]} 6. O-O {[%clk 0:04:41.1]} 6... O-O
{[%clk 0:04:54.9]} 7. d3 {[%clk 0:04:35.4]} 7... d5 {[%clk 0:04:54]} 8. c4
{[%clk 0:04:33.9]} 8... d4 {[%clk 0:04:52.2]} 9. exd4 {[%clk 0:04:27.3]} 9...
Nh5 {[%clk 0:04:50.9]} 10. Qc2 {[%clk 0:03:58.4]} 10... Nb4 {[%clk 0:04:36.5]}
11. Qd2 {[%clk 0:03:50]} 11... Bf5 {[%clk 0:04:03.8]} 12. Rd1 {[%clk 0:03:31.5]}
12... Qc7 {[%clk 0:03:48.1]} 13. dxc5 {[%clk 0:03:24.6]} 13... Bxb2 {[%clk
0:03:44]} 14. Qxb2 {[%clk 0:03:17.6]} 14... Nf4 {[%clk 0:03:43.3]} 15. Bf1
{[%clk 0:03:06.4]} 15... Rfd8 {[%clk 0:03:37.4]} 16. d4 {[%clk 0:02:59.9]} 16...
Nc2 {[%clk 0:03:29.6]} 17. Nc3 {[%clk 0:02:45]} 17... Nxa1 {[%clk 0:03:28.4]}
18. Qxa1 {[%clk 0:02:43.5]} 18... Qc6 {[%clk 0:03:25.8]} 19. Ne5 {[%clk
0:02:32.2]} 19... Qe6 {[%clk 0:03:18.2]} 20. Re1 {[%clk 0:02:17.1]} 20... Qf6
{[%clk 0:03:10.5]} 21. d5 {[%clk 0:02:09.4]} 21... Qg5 {[%clk 0:03:05.9]} 22.
Nf3 {[%clk 0:01:55.1]} 22... Nh3+ {[%clk 0:02:49.4]} 23. Kh1 {[%clk 0:01:47.5]}
23... Nxf2+ {[%clk 0:02:49]} 24. Kg1 {[%clk 0:01:45]} 24... Nh3+ {[%clk
0:02:45.8]} 25. Kh1 {[%clk 0:01:43.8]} 25... Qg4 {[%clk 0:02:43.3]} 26. Qd1
{[%clk 0:01:26.7]} 26... Nf2+ {[%clk 0:02:41.7]} 0-1

[Event "Live Chess"]
[Site "Chess.com"]
[Date "2024.06.02"]
[Round "-"]
[White "willc-h99"]
[Black "Bodhanas"]
[Result "0-1"]
[WhiteElo "2597"]
[BlackElo "2339"]
[TimeControl "300"]
[EndTime "3:49:47 PDT"]
[Termination "Bodhanas won by resignation"]

1. d4 {[%clk 0:04:59]} 1... d5 {[%clk 0:04:58.5]} 2. Nf3 {[%clk 0:04:57.6]} 2...
Nf6 {[%clk 0:04:57.1]} 3. e3 {[%clk 0:04:55.3]} 3... e6 {[%clk 0:04:56.2]} 4.
Bd3 {[%clk 0:04:54.1]} 4... Be7 {[%clk 0:04:55.2]} 5. O-O {[%clk 0:04:53.3]}
5... O-O {[%clk 0:04:53.7]} 6. b3 {[%clk 0:04:52.7]} 6... h6 {[%clk 0:04:51.6]}
7. Bb2 {[%clk 0:04:52.1]} 7... b6 {[%clk 0:04:50.5]} 8. Nbd2 {[%clk 0:04:51.5]}
8... c5 {[%clk 0:04:49.7]} 9. Qe2 {[%clk 0:04:47.4]} 9... Nc6 {[%clk 0:04:48.5]}
10. a3 {[%clk 0:04:45.7]} 10... Bb7 {[%clk 0:04:47.2]} 11. Ne5 {[%clk
0:04:42.2]} 11... Nxe5 {[%clk 0:04:45.6]} 12. dxe5 {[%clk 0:04:41.2]} 12... Ne4
{[%clk 0:04:43.1]} 13. Nxe4 {[%clk 0:04:37.9]} 13... dxe4 {[%clk 0:04:42.2]} 14.
Bc4 {[%clk 0:04:37]} 14... a6 {[%clk 0:04:40.5]} 15. a4 {[%clk 0:04:36.3]} 15...
Qc7 {[%clk 0:04:38.7]} 16. Rad1 {[%clk 0:04:32.4]} 16... Rfd8 {[%clk 0:04:37.2]}
17. h3 {[%clk 0:04:29.5]} 17... a5 {[%clk 0:04:34.3]} 18. Bb5 {[%clk 0:04:15.3]}
18... Rxd1 {[%clk 0:04:31.9]} 19. Rxd1 {[%clk 0:04:13.9]} 19... Rd8 {[%clk
0:04:30.4]} 20. Rd2 {[%clk 0:04:03.1]} 20... Rxd2 {[%clk 0:04:26.5]} 21. Qxd2
{[%clk 0:04:02.1]} 21... Qd8 {[%clk 0:04:24.4]} 22. Qxd8+ {[%clk 0:03:57.8]}
22... Bxd8 {[%clk 0:04:23.1]} 23. g4 {[%clk 0:03:55.5]} 23... Kf8 {[%clk
0:04:21.3]} 24. Kg2 {[%clk 0:03:51.4]} 24... f5 {[%clk 0:04:18.2]} 25. gxf5
{[%clk 0:03:43]} 25... exf5 {[%clk 0:04:16.9]} 26. Bc4 {[%clk 0:03:42.6]} 26...
Ke7 {[%clk 0:04:14.1]} 27. h4 {[%clk 0:03:37.3]} 27... g5 {[%clk 0:04:11.3]} 28.
h5 {[%clk 0:02:58.8]} 28... Bc6 {[%clk 0:04:09.2]} 29. e6 {[%clk 0:02:54.5]}
29... Be8 {[%clk 0:04:07.7]} 30. Bg7 {[%clk 0:02:53.5]} 30... Bxh5 {[%clk
0:04:05.4]} 31. Bxh6 {[%clk 0:02:52.7]} 31... Kf6 {[%clk 0:04:04.3]} 32. Bf8
{[%clk 0:02:47.5]} 32... Be7 {[%clk 0:04:01.9]} 33. Bxe7+ {[%clk 0:02:45.3]}
33... Kxe7 {[%clk 0:04:01.1]} 34. Kg3 {[%clk 0:02:43.4]} 34... Be8 {[%clk
0:03:59.2]} 35. f3 {[%clk 0:02:40.4]} 35... Bc6 {[%clk 0:03:55.1]} 36. fxe4
{[%clk 0:02:35.5]} 36... Bxe4 {[%clk 0:03:53.6]} 37. c3 {[%clk 0:02:34.6]} 37...
Bb7 {[%clk 0:03:52.3]} 38. Bd3 {[%clk 0:02:10.8]} 38... Kxe6 {[%clk 0:03:50.4]}
39. Kf2 {[%clk 0:02:05]} 39... Ke5 {[%clk 0:03:49]} 40. Be2 {[%clk 0:01:58.2]}
40... Be4 {[%clk 0:03:44.7]} 41. Bd1 {[%clk 0:01:54.6]} 41... f4 {[%clk
0:03:42.8]} 42. exf4+ {[%clk 0:01:52.8]} 42... Kxf4 {[%clk 0:03:41.9]} 43. Be2
{[%clk 0:01:49.2]} 43... g4 {[%clk 0:03:40.8]} 44. Bc4 {[%clk 0:01:47]} 44...
g3+ {[%clk 0:03:39.3]} 45. Ke2 {[%clk 0:01:44.2]} 45... Bf3+ {[%clk 0:03:36.2]}
46. Kf1 {[%clk 0:01:40.4]} 46... Ke3 {[%clk 0:03:35.4]} 47. Be6 {[%clk
0:01:28.5]} 47... Kd2 {[%clk 0:03:31.7]} 48. c4 {[%clk 0:01:19.6]} 48... Kc3
{[%clk 0:03:29.2]} 49. Bd7 {[%clk 0:01:18.9]} 49... Kxb3 {[%clk 0:03:27.4]} 50.
Bb5 {[%clk 0:01:18.8]} 50... Be4 {[%clk 0:03:25.3]} 51. Kg1 {[%clk 0:01:18]}
51... Bd3 {[%clk 0:03:24.2]} 52. Kg2 {[%clk 0:01:17.4]} 52... Bxc4 {[%clk
0:03:23.9]} 53. Bc6 {[%clk 0:01:16.3]} 53... Kb4 {[%clk 0:03:23]} 54. Kxg3
{[%clk 0:01:15.3]} 54... Bb3 {[%clk 0:03:22.7]} 55. Kf2 {[%clk 0:01:13.3]} 55...
Bxa4 {[%clk 0:03:22.4]} 56. Be4 {[%clk 0:01:10]} 56... Kc3 {[%clk 0:03:21.5]}
57. Ke1 {[%clk 0:01:09.1]} 57... Bc2 {[%clk 0:03:20.4]} 0-1

[Event "Live Chess"]
[Site "Chess.com"]
[Date "2024.06.02"]
[Round "-"]
[White "slava_ukr"]
[Black "Dhaydon19"]
[Result "0-1"]
[WhiteElo "2415"]
[BlackElo "2638"]
[TimeControl "300"]
[EndTime "3:49:49 PDT"]
[Termination "Dhaydon19 won by resignation"]

1. e4 {[%clk 0:04:58]} 1... c6 {[%clk 0:04:59.6]} 2. d4 {[%clk 0:04:57]} 2... d5
{[%clk 0:04:57.8]} 3. e5 {[%clk 0:04:56.3]} 3... c5 {[%clk 0:04:56.9]} 4. dxc5
{[%clk 0:04:55.2]} 4... Nc6 {[%clk 0:04:55.5]} 5. Bf4 {[%clk 0:04:54.3]} 5... e6
{[%clk 0:04:53.9]} 6. Nf3 {[%clk 0:04:52.7]} 6... Bxc5 {[%clk 0:04:52.6]} 7. Bd3
{[%clk 0:04:51.9]} 7... Nge7 {[%clk 0:04:51.6]} 8. c3 {[%clk 0:04:48.2]} 8...
Ng6 {[%clk 0:04:50.1]} 9. Bg3 {[%clk 0:04:47]} 9... Qc7 {[%clk 0:04:49.4]} 10.
Qe2 {[%clk 0:04:45.6]} 10... a6 {[%clk 0:04:46.8]} 11. h4 {[%clk 0:04:44.4]}
11... h6 {[%clk 0:04:46]} 12. h5 {[%clk 0:04:43.5]} 12... Nge7 {[%clk
0:04:45.1]} 13. Nbd2 {[%clk 0:04:41.6]} 13... Ba7 {[%clk 0:04:42.3]} 14. Nb3
{[%clk 0:04:39.5]} 14... Bd7 {[%clk 0:04:37.9]} 15. Nbd4 {[%clk 0:04:35.8]}
15... Nxd4 {[%clk 0:04:36.3]} 16. Nxd4 {[%clk 0:04:22.6]} 16... Nc6 {[%clk
0:04:33.9]} 17. Nxc6 {[%clk 0:04:01.7]} 17... Bxc6 {[%clk 0:04:31.7]} 18. Qg4
{[%clk 0:03:53.9]} 18... O-O-O {[%clk 0:04:24.9]} 19. Qxg7 {[%clk 0:03:42.6]}
19... d4 {[%clk 0:04:22.1]} 20. c4 {[%clk 0:02:55.4]} 20... Bxg2 {[%clk
0:04:14]} 21. Rg1 {[%clk 0:02:47.1]} 21... Bc6 {[%clk 0:04:09.1]} 22. Bh4 {[%clk
0:02:42.5]} 22... Rde8 {[%clk 0:03:59.8]} 23. Bf6 {[%clk 0:02:40.4]} 23... Qb6
{[%clk 0:03:52.7]} 24. O-O-O {[%clk 0:02:31.2]} 24... Bf3 {[%clk 0:03:46.9]} 25.
Rde1 {[%clk 0:02:09.4]} 25... Bxh5 {[%clk 0:03:44.3]} 26. Qg3 {[%clk 0:01:59.8]}
26... Qc7 {[%clk 0:03:37.6]} 27. Bxh8 {[%clk 0:01:55.1]} 27... Rxh8 {[%clk
0:03:25.9]} 28. Qg7 {[%clk 0:01:51.7]} 28... Rd8 {[%clk 0:03:21.8]} 29. Qxh6
{[%clk 0:01:50]} 29... Bf3 {[%clk 0:03:20.1]} 30. Qf4 {[%clk 0:01:44.2]} 30...
Bc6 {[%clk 0:03:17.2]} 31. Rg7 {[%clk 0:01:41.6]} 31... Qa5 {[%clk 0:03:11.4]}
32. Qd2 {[%clk 0:01:18.6]} 32... Qc7 {[%clk 0:03:04.1]} 33. Reg1 {[%clk
0:01:13.9]} 33... Bc5 {[%clk 0:03:00.8]} 34. f4 {[%clk 0:01:09.7]} 34... a5
{[%clk 0:02:57.1]} 35. f5 {[%clk 0:01:05.1]} 35... Qxe5 {[%clk 0:02:53.5]} 36.
Rxf7 {[%clk 0:01:04.3]} 36... exf5 {[%clk 0:02:51]} 37. Rxf5 {[%clk 0:01:00.4]}
37... Qe7 {[%clk 0:02:45.1]} 38. Re1 {[%clk 0:00:56.7]} 38... Qd6 {[%clk
0:02:37.1]} 39. Qf4 {[%clk 0:00:52.9]} 39... Qxf4+ {[%clk 0:02:33.8]} 40. Rxf4
{[%clk 0:00:52]} 40... Bf8 {[%clk 0:02:30.2]} 41. b3 {[%clk 0:00:48.9]} 41...
Bh6 {[%clk 0:02:29]} 42. Rf1 {[%clk 0:00:45.5]} 42... Rf8 {[%clk 0:02:27.8]} 0-1